bitfinex-derivatives/quotes_SOLF0:USTF0_20220110
["timestamp","ask_amount","ask_price","bid_price","bid_amount"]
[1641855512984,2.49962175,135.04,134.99,11.85223443]
[1641855514184,2.49962175,135.04,135.01,5.9254677]
[1641855514391,2.49962175,135.04,135.01,15.0464677]
[1641855516690,27.66479,135.07,135.01,15.0464677]
[1641855516888,2.49945705,135.03,135.01,15.0464677]
[1641855517087,2.49945705,135.03,135.01,15.04646637]
[1641855518488,2.49945705,135.03,135.01,16.89746637]
[1641855519488,2.49945705,135.03,135.01,15.04646637]
[1641855520394,27.66479,135.07,135.01,15.04646637]
[1641855520794,27.66479,135.07,135.02,4.19472199]
[1641855520993,4.0,135.06,135.02,4.19472199]
[1641855521197,4.0,135.03,134.96,34.77770332]
[1641855521396,8.893,135.03,134.94,1.851]
[1641855521595,12.893,135.03,134.93,8.96661621]
[1641855521794,8.893,135.03,134.93,8.96661621]
[1641855521997,2.49933576,135.02,134.93,8.96661621]
[1641855522595,2.49933576,135.02,134.94,2.51685516]
[1641855525601,47.32684469,135.04,134.94,2.51685516]
[1641855526101,43.32684469,135.04,134.94,2.51685516]
[1641855526300,4.0,135.0,134.94,6.71257369]
[1641855526501,31.66479,135.0,134.94,6.71257369]
[1641855526701,31.66479,135.0,134.94,4.19571853]
[1641855527101,4.0,134.99,134.94,4.19571853]
[1641855528203,2.69890907,134.98,134.94,23.84740148]
[1641855528806,2.69890907,134.99,134.94,23.84740148]
[1641855529004,4.0,134.97,134.94,23.84740148]
[1641855529405,11.14290907,134.99,134.94,23.84740148]
[1641855529607,8.444,134.99,134.94,23.84740148]
[1641855529905,8.444,134.99,134.94,19.65168295]
[1641855530207,4.0,134.95,134.94,19.65168295]
[1641855530405,4.0,134.95,134.88,17.51405469]
[1641855530406,10.98,134.95,134.88,17.51405469]
[1641855530606,27.66479,134.92,134.87,15.66205469]
[1641855530808,35.24579,134.92,134.87,15.66205469]
[1641855531210,39.24579,134.92,134.87,15.66205469]
[1641855531410,35.24579,134.92,134.87,15.66205469]
[1641855531608,39.24579,134.92,134.85,2.5224133]
[1641855532108,4.0,134.91,134.85,2.5224133]
[1641855532309,39.24579,134.92,134.85,2.5224133]
[1641855532507,4.0,134.91,134.84,2.5224133]
[1641855532711,39.24579,134.92,134.84,2.5224133]
[1641855532909,35.24579,134.92,134.84,2.5224133]
[1641855533310,4.0,134.91,134.84,2.5224133]
[1641855533910,31.66479,134.92,134.84,2.5224133]
[1641855534511,4.0,134.9,134.84,2.5224133]
[1641855534712,8.986,134.91,134.84,2.5224133]
[1641855534911,8.986,134.91,134.81,138.66479]
[1641855535113,76.0542,134.91,134.81,138.66479]
[1641855535314,76.0542,134.91,134.81,118.66479]
[1641855535713,80.0542,134.91,134.81,118.66479]
[1641855535915,80.0542,134.91,134.82,2.51365804]
[1641855537213,4.1986242,134.9,134.82,2.51365804]
[1641855537916,4.0,134.89,134.82,2.51365804]
[1641855539515,4.0,134.88,134.82,2.51365804]
[1641855544522,4.0,134.88,134.82,8.44748675]
[1641855544921,4.0,134.88,134.82,5.93382871]
[1641855545123,4.0,134.87,134.81,146.32958]
[1641855545320,8.19868044,134.87,134.81,91.0]
[1641855545922,8.19868044,134.87,134.82,2.51063118]
[1641855547021,8.19868044,134.87,134.81,91.0]
[1641855548923,8.19868044,134.87,134.83,0.83966275]
[1641855549223,4.19843074,134.86,134.83,0.83966275]
[1641855550026,8.19843074,134.86,134.83,0.83966275]
[1641855552729,8.19843074,134.86,134.81,91.0]
[1641855553028,8.19843074,134.86,134.84,0.83970793]
[1641855553029,4.0,134.86,134.84,0.83970793]
[1641855556234,4.0,134.86,134.81,91.0]
[1641855556836,4.0,134.86,134.85,0.83972306]
[1641855560339,4.0,134.86,134.85,3.36983206]
[1641855560738,4.0,134.86,134.85,2.530109]
[1641855560939,4.0,134.86,134.85,3.36984036]
[1641855564447,4.0,134.86,134.85,2.530109]
[1641855564648,4.0,134.86,134.85,3.36984302]
[1641855565049,4.0,134.86,134.85,0.83973402]
[1641855565847,4.0,134.86,134.85,3.36984302]
[1641855567452,4.0,134.86,134.85,0.83973402]
[1641855568351,4.0,134.86,134.81,106.66205469]
[1641855568551,4.0,134.84,134.81,106.66205469]
[1641855568951,4.0,134.84,134.82,2.5308899]
[1641855577159,4.0,134.84,134.81,15.66205469]
[1641855577860,4.0,134.84,134.8,15.66205469]
[1641855579463,4.19920029,134.83,134.8,15.66205469]
[1641855582965,4.0,134.84,134.8,15.66205469]
[1641855583765,4.0,134.84,134.81,0.83984331]
[1641855584166,15.66205469,134.88,134.81,0.83984331]
[1641855584567,15.66205469,134.88,134.82,5.93367516]
[1641855584767,15.66205469,134.88,134.82,13.42267516]
[1641855584969,2.7091688,134.88,134.84,27.66479]
[1641855585268,2.7091688,134.88,134.84,5.93295685]
[1641855585869,2.7091688,134.88,134.85,2.5308899]
[1641855586069,2.7091688,134.88,134.85,8.5728899]
[1641855586769,2.7091688,134.88,134.86,2.5308899]
[1641855587569,27.66479,134.89,134.86,2.5308899]
[1641855588270,4.19872382,134.87,134.86,8.46286]
[1641855588469,1e-08,134.87,134.86,10.31586]
[1641855590177,1e-08,134.87,134.86,26.00623711]
[1641855590777,1e-08,134.87,134.86,24.15323711]
[1641855591576,27.66479,134.89,134.86,24.15323711]
[1641855591977,19.66205469,134.97,134.86,24.15323711]
[1641855592176,19.66205469,134.97,134.86,92.85173711]
[1641855592376,19.66205469,134.97,134.87,2.5308899]
[1641855593077,4.0,134.95,134.87,2.5308899]
[1641855593277,2.70111646,134.96,134.87,2.5308899]
[1641855594178,6.70111646,134.96,134.87,2.5308899]
[1641855594578,2.70111646,134.96,134.87,2.5308899]
[1641855595979,4.19687187,134.96,134.87,2.5308899]
[1641855597081,4.19687187,134.96,134.88,27.66479]
[1641855597282,4.19687187,134.96,134.88,36.31079]
[1641855597482,4.19687187,134.96,134.89,2.5308899]
[1641855599289,31.66479,134.97,134.89,2.5308899]
[1641855599491,4.19670519,134.95,134.89,2.5308899]
[1641855599688,4.19670519,134.95,134.86,27.55422994]
[1641855599889,8.19670519,134.95,134.86,11.86385283]
[1641855600090,4.19670519,134.95,134.86,11.86385283]
[1641855600389,8.19670519,134.95,134.86,11.86385283]
[1641855600590,4.19670519,134.95,134.87,2.51718481]
[1641855600789,8.19670519,134.95,134.87,2.51718481]
[1641855601191,14.12502829,134.95,134.87,2.51718481]
[1641855601392,10.12502829,134.95,134.87,2.51718481]
[1641855601690,4.19670519,134.95,134.87,2.51718481]
[1641855601892,4.19670519,134.95,134.86,2.51718481]
[1641855602093,4.0,134.93,134.86,2.51718481]
[1641855602291,4.19670519,134.95,134.86,2.51718481]
[1641855602493,8.19670519,134.95,134.86,2.51718481]
[1641855603093,5.9280909,134.96,134.86,2.51718481]
[1641855603094,4.0,134.91,134.86,2.51718481]
[1641855603293,10.5,134.91,134.86,2.51718481]
[1641855603492,6.5,134.91,134.86,2.51718481]
[1641855603693,10.5,134.91,134.85,2.51718481]
[1641855603992,6.5,134.91,134.85,2.51718481]
[1641855604395,4.0,134.89,134.85,2.51718481]
[1641855605594,4.0,134.88,134.85,2.51718481]
[1641855605794,4.0,134.87,134.85,2.51718481]
[1641855605995,33.59519938,134.9,134.8,15.69037711]
[1641855606194,4.0,134.86,134.8,23.70037711]
[1641855606395,4.0,134.85,134.8,23.70037711]
[1641855606794,4.0,134.85,134.81,2.51874585]
[1641855606994,4.0,134.83,134.81,2.51874585]
[1641855607495,4.0,134.84,134.81,2.51874585]
[1641855607693,31.66479,134.85,134.81,2.51874585]
[1641855607895,4.0,134.87,134.81,2.51874585]
[1641855608094,4.0,134.85,134.81,2.51874585]
[1641855608696,4.0,134.86,134.81,2.51874585]
[1641855609093,5.854,134.87,134.81,2.51874585]
[1641855609295,5.854,134.87,134.79,9.022]
[1641855609495,4.0,134.86,134.79,9.022]
[1641855609895,4.0,134.86,134.8,2.51874585]
[1641855611495,4.0,134.87,134.8,2.51874585]
[1641855611696,4.19905827,134.86,134.8,2.51874585]
[1641855614001,4.19905827,134.86,134.81,4.0]
[1641855614203,15.66205469,134.91,134.81,7.78788265]
[1641855614404,15.66205469,134.91,134.82,4.0]
[1641855614603,15.66205469,134.91,134.86,4.0]
[1641855614804,15.66205469,134.91,134.87,4.0]
[1641855615007,15.65342134,134.95,134.89,4.0]
[1641855615206,15.65342134,134.95,134.89,40.44479]
[1641855616007,15.65342134,134.95,134.93,4.0]
[1641855616206,41.53377598,134.98,134.93,11.517]
[1641855616408,2.69577234,134.99,134.94,4.0]
[1641855616607,2.69577234,134.99,134.93,7.517]
[1641855616816,4.0,134.98,134.94,1.852]
[1641855617009,6.69577234,134.99,134.9,2.51874585]
[1641855617210,4.0,134.98,134.9,2.51874585]
[1641855617411,4.0,134.98,134.87,29.51679]
[1641855618010,27.66479,135.01,134.87,29.51679]
[1641855618212,4.0,134.92,134.86,43.74616029]
[1641855618412,13.027,134.92,134.86,41.89416029]
[1641855618612,13.027,134.92,134.88,12.70830794]
[1641855619013,13.027,134.92,134.85,41.89416029]
[1641855619014,4.0,134.91,134.85,41.89416029]
[1641855619211,40.69179,134.92,134.85,41.89416029]
[1641855619612,4.0,134.91,134.79,65.89416029]
[1641855620213,4.0,134.9,134.79,65.89416029]
[1641855620613,4.0,134.9,134.79,20.0]
[1641855621214,4.0,134.9,134.82,27.66479]
[1641855621711,40.69179,134.92,134.82,27.66479]
[1641855622111,40.69179,134.92,134.87,1.26060124]
[1641855622711,4.0,134.91,134.87,1.26060124]
[1641855622914,4.0,134.88,134.79,1.853]
[1641855623112,4.0,134.85,134.78,132.89416029]
[1641855623313,4.0,134.84,134.78,132.89416029]
[1641855623513,13.15,134.85,134.78,132.89416029]
[1641855623712,13.15,134.85,134.78,91.0]
[1641855624312,9.15,134.85,134.78,91.0]
[1641855625114,27.66479,134.88,134.78,91.0]
[1641855626816,27.66479,134.88,134.78,96.93537543]
[1641855627016,27.66479,134.88,134.78,102.87065357]
[1641855628120,27.66479,134.88,134.79,1.854]
[1641855628418,4.0,134.85,134.78,101.372]
[1641855628717,9.737,134.85,134.78,91.0]
[1641855630421,5.737,134.85,134.78,91.0]
[1641855632823,4.0,134.86,134.78,91.0]
[1641855633328,4.0,134.85,134.78,91.0]
[1641855633524,4.0,134.84,134.78,91.0]
[1641855633926,4.0,134.83,134.78,91.0]
[1641855634127,4.0,134.81,134.78,91.0]
[1641855634326,4.0,134.81,134.74,41.89416029]
[1641855634327,6.669,134.81,134.74,41.89416029]
[1641855634527,4.0,134.79,134.73,132.89416029]
[1641855634727,4.0,134.77,134.73,41.89416029]
[1641855634928,4.0,134.76,134.73,41.89416029]
[1641855635127,4.0,134.76,134.69,62.84124043]
[1641855635327,5.93681212,134.76,134.69,62.84124043]
[1641855635527,4.0,134.73,134.68,91.0]
[1641855635728,4.0,134.72,134.68,91.0]
[1641855635930,4.0,134.72,134.67,41.72021041]
[1641855636328,4.0,134.71,134.67,41.72021041]
[1641855636529,9.727,134.73,134.67,41.72021041]
[1641855636729,4.0,134.68,134.63,153.84124043]
[1641855636929,4.0,134.66,134.63,91.0]
[1641855637129,6.344,134.68,134.63,91.0]
[1641855637130,4.0,134.67,134.63,91.0]
[1641855637530,4.0,134.66,134.63,91.0]
[1641855637732,4.0,134.67,134.63,91.0]
[1641855638439,4.0,134.64,134.57,91.0]
[1641855638632,11.886,134.64,134.57,91.0]
[1641855641933,4.0,134.63,134.57,91.0]
[1641855642335,11.886,134.64,134.57,91.0]
[1641855643334,4.0,134.63,134.57,91.0]
[1641855643935,11.886,134.64,134.57,91.0]
[1641855645738,7.886,134.64,134.57,91.0]
[1641855646037,31.66479,134.65,134.57,91.0]
[1641855646844,37.6064798,134.65,134.57,91.0]
[1641855647044,33.6064798,134.65,134.57,91.0]
[1641855648447,5.9416898,134.65,134.58,4.0]
[1641855648648,1.857,134.68,134.58,4.0]
[1641855648649,7.79658021,134.69,134.61,4.0]
[1641855648848,4.0,134.73,134.62,4.0]
[1641855648849,1.856,134.72,134.62,4.0]
[1641855649047,5.937903,134.73,134.64,4.0]
[1641855649249,9.9362927,134.77,134.64,8.367]
[1641855649448,4.0,134.74,134.64,8.367]
[1641855650049,37.6019304,134.75,134.64,8.367]
[1641855650249,4.0,134.74,134.64,8.367]
[1641855650649,4.0,134.73,134.64,8.367]
[1641855651249,4.0,134.73,134.62,91.0]
[1641855651250,4.0,134.71,134.62,91.0]
[1641855651450,9.93851847,134.72,134.62,91.0]
[1641855651649,4.0,134.69,134.62,91.0]
[1641855651850,27.66479,134.71,134.62,91.0]
[1641855652149,4.0,134.7,134.62,91.0]
[1641855655651,27.66479,134.68,134.62,91.0]
[1641855656553,27.66479,134.68,134.63,1.00245149]
[1641855657154,4.0,134.66,134.63,1.00245149]
[1641855657355,4.0,134.64,134.63,1.00245149]
[1641855657554,4.0,134.65,134.57,106.47079249]
[1641855658156,5.75,134.66,134.57,106.47079249]
[1641855658357,4.0,134.64,134.57,91.0]
[1641855659659,27.66479,134.61,134.57,91.0]
[1641855661060,27.66479,134.61,134.58,2.50670264]
[1641855663564,4.20523506,134.65,134.59,15.47079249]
[1641855664264,4.20523506,134.65,134.59,2.50670264]
[1641855665664,4.20523506,134.65,134.62,15.47079249]
[1641855665863,4.0,134.7,134.62,15.47079249]
[1641855665864,31.66479,134.7,134.62,15.47079249]
[1641855667067,4.0,134.66,134.62,15.47079249]
[1641855667265,4.0,134.65,134.62,15.47079249]
[1641855667468,4.0,134.63,134.59,43.94361155]
[1641855667766,5.94203521,134.64,134.6,15.70425026]
[1641855668566,5.94203521,134.64,134.58,12.72088832]
[1641855668866,9.913,134.65,134.58,12.72088832]
[1641855669465,15.85456071,134.65,134.58,12.72088832]
[1641855670268,1.857,134.64,134.58,12.72088832]
[1641855670667,4.0,134.63,134.58,12.72088832]
[1641855670869,5.857,134.64,134.58,2.50670264]
[1641855671270,1.857,134.64,134.58,2.50670264]
[1641855671767,1.857,134.64,134.54,43.94361155]
[1641855671967,9.94172675,134.65,134.54,43.94361155]
[1641855673469,9.94172675,134.65,134.54,2.50670264]
[1641855673869,8.20575591,134.63,134.54,2.50670264]
[1641855674071,4.0,134.6,134.54,2.50670264]
[1641855674271,13.218,134.6,134.54,2.50670264]
[1641855674471,4.0,134.59,134.54,2.50670264]
[1641855675571,15.075,134.6,134.54,2.50670264]
[1641855675773,13.218,134.6,134.54,2.50670264]
[1641855675972,40.88279,134.6,134.55,0.84115799]
[1641855676374,4.0,134.58,134.55,0.84115799]
[1641855676774,9.94444329,134.58,134.56,2.50670264]
[1641855676974,9.94444329,134.58,134.56,2.64e-06]
[1641855677176,9.94444329,134.58,134.55,0.84115799]
[1641855677375,4.0,134.57,134.55,0.84115799]
[1641855677576,4.0,134.56,134.51,27.66479]
[1641855677775,4.0,134.55,134.51,27.66479]
[1641855678176,4.0,134.56,134.51,27.66479]
[1641855678376,4.0,134.53,134.51,27.66479]
[1641855678576,4.0,134.53,134.48,41.43690891]
[1641855678577,13.11,134.53,134.48,41.43690891]
[1641855678776,13.11,134.53,134.47,10.18491391]
[1641855678976,4.0,134.51,134.47,10.18491391]
[1641855679276,9.11,134.53,134.47,10.18491391]
[1641855679679,4.0,134.51,134.47,10.18491391]
[1641855680078,27.66479,134.49,134.47,10.18491391]
[1641855680276,11.259,134.5,134.47,10.18491391]
[1641855680877,11.259,134.5,134.45,41.43690891]
[1641855681077,11.259,134.5,134.42,10.18491391]
[1641855681278,4.0,134.46,134.42,10.18491391]
[1641855681478,4.0,134.49,134.42,10.18491391]
[1641855682180,1.859,134.5,134.42,10.18491391]
[1641855682380,5.94849462,134.49,134.42,10.18491391]
[1641855683480,4.0,134.45,134.42,10.18491391]
[1641855683681,4.0,134.43,134.38,41.43690891]
[1641855683880,4.0,134.42,134.38,41.43690891]
[1641855684082,27.66479,134.43,134.38,41.43690891]
[1641855684483,27.66479,134.45,134.38,41.43690891]
[1641855684685,27.66479,134.45,134.38,50.40190891]
[1641855684884,27.66479,134.45,134.38,8.965]
[1641855686187,7.13870381,134.48,134.38,8.965]
[1641855686488,27.66479,134.49,134.4,4.0]
[1641855687187,4.21107946,134.48,134.38,8.965]
[1641855687588,4.21107946,134.48,134.38,23.10506792]
[1641855687989,4.21107946,134.48,134.38,50.76985792]
[1641855688390,4.21107946,134.48,134.42,4.0]
[1641855688592,4.21107946,134.48,134.42,10.925]
[1641855688988,4.21107946,134.48,134.42,6.925]
[1641855689188,4.21107946,134.48,134.42,10.925]
[1641855689588,4.21107946,134.48,134.46,4.0]
[1641855689791,1.859,134.55,134.46,8.154]
[1641855689990,5.94571729,134.56,134.46,8.154]
[1641855690890,4.0,134.55,134.46,8.154]
[1641855691089,5.94571729,134.56,134.46,8.154]
[1641855691291,9.94571729,134.56,134.46,8.154]
[1641855691491,4.0,134.55,134.46,8.154]
[1641855691690,27.66479,134.57,134.46,8.154]
[1641855692293,4.0,134.54,134.46,8.154]
[1641855692491,31.66479,134.57,134.46,8.154]
[1641855692893,5.94578312,134.55,134.46,8.154]
[1641855693492,4.0,134.54,134.46,8.154]
[1641855693893,9.94587624,134.55,134.46,8.154]
[1641855694095,27.66479,134.53,134.46,8.154]
[1641855694898,27.66479,134.53,134.42,101.925]
[1641855694899,27.66479,134.53,134.47,0.84183512]
[1641855695098,31.66479,134.53,134.47,0.84183512]
[1641855696598,5.94710585,134.52,134.47,0.84183512]
[1641855696800,7.80510585,134.52,134.47,0.84183512]
[1641855697999,12.01457224,134.52,134.47,0.84183512]
[1641855698800,4.0,134.49,134.45,6.846]
[1641855699100,5.94842113,134.49,134.48,0.84193723]
[1641855699300,9.94842113,134.49,134.43,25.78819653]
[1641855699600,4.0,134.48,134.43,25.78819653]
[1641855699801,5.94928701,134.47,134.39,15.62404931]
[1641855700004,27.66479,134.46,134.39,15.62404931]
[1641855700403,40.47279,134.46,134.39,15.62404931]
[1641855701003,36.47279,134.46,134.39,15.62404931]
[1641855701902,40.47279,134.46,134.39,15.62404931]
[1641855702103,27.66479,134.43,134.39,15.62404931]
[1641855702505,5.95079497,134.44,134.39,15.62404931]
[1641855703805,27.66479,134.46,134.39,15.62404931]
[1641855704604,27.66479,134.46,134.4,15.62404931]
[1641855705607,33.61486149,134.46,134.4,15.62404931]
[1641855705807,33.61486149,134.46,134.4,23.89904931]
[1641855706613,5.95017715,134.45,134.4,23.89904931]
[1641855706808,5.95017715,134.45,134.41,15.62404931]
[1641855709810,1.859,134.47,134.42,4.0]
[1641855710010,43.28883931,134.53,134.43,4.0]
[1641855710213,43.28883931,134.53,134.43,103.632]
[1641855710411,43.28883931,134.53,134.45,4.0]
[1641855710610,15.62404931,134.53,134.45,4.0]
[1641855711013,15.62404931,134.53,134.49,15.62404931]
[1641855711212,5.94459637,134.58,134.49,23.40104931]
[1641855712014,33.60938637,134.58,134.49,23.40104931]
[1641855712513,27.66479,134.58,134.49,23.40104931]
[1641855713013,27.66479,134.6,134.49,7.777]
[1641855713614,31.66479,134.6,134.49,7.777]
[1641855713815,31.66479,134.6,134.48,15.62404931]
[1641855714017,31.66479,134.6,134.5,15.62404931]
[1641855714318,27.66479,134.57,134.5,15.62404931]
[1641855714517,27.66479,134.57,134.5,19.62404931]
[1641855714717,27.66479,134.6,134.5,19.62404931]
[1641855714918,27.66479,134.6,134.48,22.88404931]
[1641855715320,27.66479,134.6,134.53,4.0]
[1641855715519,15.62404931,134.62,134.53,10.386]
[1641855715919,15.62404931,134.62,134.55,4.0]
[1641855716120,11.38,134.68,134.53,6.386]
[1641855716121,15.62404931,134.67,134.54,27.66479]
[1641855716321,15.62404931,134.67,134.55,4.0]
[1641855716719,15.62404931,134.67,134.54,27.66479]
[1641855716720,15.62404931,134.67,134.54,31.66479]
[1641855717122,27.66479,134.68,134.55,15.62404931]
[1641855718121,27.66479,134.68,134.55,2.51253497]
[1641855719123,4.0,134.66,134.55,2.51253497]
[1641855719323,5.94202783,134.64,134.55,2.51253497]
[1641855719725,7.723,134.66,134.52,27.66479]
[1641855719726,5.94309958,134.61,134.52,27.66479]
[1641855720325,5.94128851,134.66,134.54,4.0]
[1641855720527,5.94128851,134.66,134.54,9.856]
[1641855720726,10.14792578,134.66,134.54,9.856]
[1641855720925,10.14792578,134.66,134.54,5.856]
[1641855721326,10.14792578,134.66,134.55,2.50948761]
[1641855721327,14.14792578,134.66,134.55,2.50948761]
[1641855721828,20.08917292,134.66,134.55,2.50948761]
[1641855722327,16.08917292,134.66,134.55,2.50948761]
[1641855722527,16.08917292,134.66,134.56,1.36730796]
[1641855722726,10.14788441,134.66,134.56,1.36730796]
[1641855723327,4.20663727,134.66,134.56,1.36730796]
[1641855724929,4.20696288,134.65,134.56,1.36730796]
[1641855726230,5.94178571,134.64,134.56,1.36730796]
[1641855726430,5.94178571,134.64,134.55,27.66479]
[1641855726632,5.94178571,134.64,134.57,2.20915902]
[1641855726829,5.94178571,134.64,134.57,9.94115902]
[1641855728831,5.94308226,134.62,134.57,9.94115902]
[1641855729031,5.94308226,134.62,134.57,2.20915902]
[1641855729231,9.94393926,134.6,134.52,27.66479]
[1641855729431,4.0,134.59,134.52,27.66479]
[1641855730432,27.66479,134.58,134.52,27.66479]
[1641855734737,33.60872926,134.6,134.52,27.66479]
[1641855735034,33.60872926,134.6,134.52,36.84679]
[1641855735735,33.60872926,134.6,134.52,9.182]
[1641855735936,27.66479,134.6,134.52,9.182]
[1641855736336,4.20835976,134.57,134.52,9.182]
[1641855737538,4.20835976,134.57,134.53,2.51421827]
[1641855738841,5.976e-05,134.57,134.53,2.51421827]
[1641855740041,5.94321415,134.61,134.53,2.51421827]
[1641855740242,4.20791725,134.59,134.5,18.13826758]
[1641855740841,31.87270725,134.59,134.5,18.13826758]
[1641855741043,31.87270725,134.59,134.5,15.62404931]
[1641855741643,37.81683678,134.59,134.5,15.62404931]
[1641855742043,41.81683678,134.59,134.5,15.62404931]
[1641855743144,9.94627506,134.54,134.5,4.931e-05]
[1641855743343,4.0,134.51,134.5,4.931e-05]
[1641855743543,5.94832882,134.5,134.45,15.40963069]
[1641855743746,10.54,134.51,134.45,41.86248931]
[1641855743945,6.54,134.51,134.45,41.86248931]
[1641855744347,6.54,134.51,134.45,45.86248931]
[1641855744545,8.56075176,134.57,134.45,45.86248931]
[1641855744745,4.20820217,134.58,134.46,4.0]
[1641855744945,4.20820217,134.58,134.46,9.821]
[1641855745245,4.20820217,134.58,134.49,4.0]
[1641855745448,4.20820217,134.58,134.49,12.046]
[1641855745647,4.20820217,134.58,134.5,4.0]
[1641855745848,4.20820217,134.58,134.49,12.046]
[1641855746048,4.20820217,134.58,134.49,8.046]
[1641855746249,4.20820217,134.58,134.51,1.74710437]
[1641855747749,8.20820217,134.58,134.51,1.74710437]
[1641855747949,4.0,134.58,134.51,1.74710437]
[1641855748550,4.2090131,134.56,134.51,1.74710437]
[1641855749654,4.2090131,134.56,134.49,8.046]
[1641855750154,4.2090131,134.56,134.52,1.78981066]
[1641855750354,4.2090131,134.56,134.52,9.92981066]
[1641855751757,10.15466305,134.56,134.52,9.92981066]
[1641855752257,5.94564995,134.56,134.52,9.92981066]
[1641855752657,4.20880734,134.55,134.52,9.92981066]
[1641855754058,4.20880734,134.55,134.52,8.14]
[1641855754257,4.20880734,134.55,134.53,2.63139172]
[1641855756260,4.20889793,134.55,134.53,2.63139172]
[1641855756460,4.20889793,134.55,134.53,11.21839172]
[1641855757463,10.15467897,134.55,134.53,11.21839172]
[1641855757759,10.15467897,134.55,134.53,8.587]
[1641855758161,10.15467897,134.55,134.54,2.63155544]
[1641855759764,5.94578104,134.55,134.54,2.63155544]
[1641855760165,3.31470598,134.54,134.49,8.046]
[1641855760465,5.94578104,134.55,134.46,21.24931191]
[1641855761268,5.94578104,134.55,134.46,5.821]
[1641855761466,5.94578104,134.55,134.45,31.66479]
[1641855761866,5.94578104,134.55,134.54,2.63154844]
[1641855765071,5.94578104,134.55,134.46,57.83361964]
[1641855765272,5.94578104,134.55,134.46,59.91245271]
[1641855765872,5.94638204,134.54,134.46,59.91245271]
[1641855766073,5.94638204,134.54,134.48,4.0]
[1641855766273,5.94578104,134.55,134.48,4.0]
[1641855767074,5.94578104,134.55,134.46,75.34076462]
[1641855767275,5.94578104,134.55,134.47,4.0]
[1641855768678,5.94578104,134.55,134.47,6.07883494]
[1641855769479,5.94578104,134.55,134.47,48.01425547]
[1641855770479,34.79761982,134.59,134.52,4.0]
[1641855770680,7.13191285,134.61,134.52,7.376]
[1641855771279,7.13191285,134.61,134.52,35.04079]
[1641855772181,7.13191285,134.61,134.53,10.21919911]
[1641855772382,11.13191285,134.61,134.53,10.21919911]
[1641855772981,7.13191285,134.61,134.53,10.21919911]
[1641855773182,7.13191285,134.61,134.5,27.66479]
[1641855773582,4.0,134.6,134.5,27.66479]
[1641855773782,11.13191285,134.61,134.5,27.66479]
[1641855774183,26.87001045,134.61,134.52,15.7380976]
[1641855775083,19.94564378,134.6,134.52,15.7380976]
[1641855775682,5.94415522,134.59,134.52,15.7380976]
[1641855776282,5.94415522,134.59,134.54,2.07822681]
[1641855776482,5.94464099,134.58,134.54,2.07822681]
[1641855778983,4.20833547,134.6,134.54,2.07822681]
[1641855779383,4.20833547,134.6,134.54,29.74301681]
[1641855780184,4.20833547,134.6,134.54,27.66479]
[1641855780384,4.20833547,134.6,134.55,2.07845384]
[1641855782486,43.4028876,134.61,134.55,2.07845384]
[1641855783087,4.20779668,134.59,134.55,2.07845384]
[1641855783987,4.20779668,134.59,134.54,27.66479]
[1641855784188,4.20779668,134.59,134.55,2.07781178]
[1641855784590,4.20779668,134.59,134.55,4.60189]
[1641855785187,4.20779668,134.59,134.55,2.07781178]
[1641855786588,22.86950906,134.62,134.55,2.07781178]
[1641855786788,4.20790464,134.6,134.55,2.07781178]
[1641855787491,4.20790464,134.6,134.54,27.66479]
[1641855787890,4.20790464,134.6,134.56,2.07791287]
[1641855789490,4.0,134.59,134.53,15.7380976]
[1641855789690,5.9453631,134.56,134.53,15.7380976]
[1641855789889,12.2213631,134.56,134.53,15.7380976]
[1641855790492,12.2213631,134.56,134.46,27.66479]
[1641855790493,12.2213631,134.56,134.51,2.5247343]
[1641855790691,16.2213631,134.56,134.51,2.5247343]
[1641855791192,12.2213631,134.56,134.51,2.5247343]
[1641855791492,12.2213631,134.56,134.49,15.7380976]
[1641855792092,16.2213631,134.56,134.49,15.7380976]